fUST/lending_fUST_20250914
["ID","MTS","AMOUNT","RATE_DAILY","PERIOD"]
[385371340,1757796644427,-480.0,0.00024657,3]
[385371341,1757796644436,-519.28,0.00024657,3]
[385371342,1757796644445,-480.0,0.00024657,3]
[385371343,1757796644454,-480.0,0.00024657,3]
[385371344,1757796644463,-3149.83,0.00024657,3]
[385371345,1757796644473,-480.0,0.00024657,3]
[385371346,1757796644486,-580.87076324,0.00024657,3]
[385371347,1757796644495,-480.0,0.00024657,3]
[385371348,1757796644504,-480.0,0.00024657,3]
[385371349,1757796644513,-1820.96,0.00024657,3]
[385371350,1757796644522,-9134.73,0.00024657,3]
[385371351,1757796644532,-480.0,0.00024657,3]
[385371352,1757796644542,-480.0,0.00024657,3]
[385371353,1757796644551,-620.02,0.00024657,3]
[385371354,1757796644563,-480.0,0.00024657,3]
[385371355,1757796644572,-481.95399321,0.00024657,3]
[385371356,1757796644581,-480.0,0.00024657,3]
[385371357,1757796644591,-480.0,0.00024657,3]
[385371358,1757796644600,-480.0,0.00024657,3]
[385371359,1757796644609,-6274.25,0.00024657,3]
[385371360,1757796644619,-480.0,0.00024657,3]
[385371361,1757796644628,-2987.73,0.00024657,3]
[385371362,1757796644637,-480.0,0.00024657,3]
[385371363,1757796644648,-157.0,0.00024657,3]
[385371364,1757796644657,-199.36865223,0.00024657,3]
[385371365,1757796644667,-480.0,0.00024657,3]
[385371366,1757796644676,-480.0,0.00024657,3]
[385371367,1757796644685,-480.0,0.00024657,3]
[385371368,1757796644695,-3977.5,0.00024657,3]
[385371369,1757796644704,-1293.35,0.00024657,3]
[385371370,1757796644714,-688.144878,0.00024657,7]
[385371371,1757796644723,-688.144878,0.00024657,7]
[385371372,1757796644732,-688.144878,0.00024657,7]
[385371373,1757796644742,-688.144878,0.00024657,7]
[385371374,1757796644751,-1885.78,0.00024657,3]
[385371375,1757796644760,-688.144878,0.00024657,7]
[385371376,1757796644769,-688.144878,0.00024657,7]
[385371377,1757796644779,-688.144878,0.00024657,7]
[385371378,1757796644788,-151.0,0.00024657,7]
[385371379,1757796644798,-688.144878,0.00024657,7]
[385371380,1757796644807,-151.0,0.00024657,7]
[385371381,1757796644816,-688.144878,0.00024657,7]
[385371382,1757796644825,-151.0,0.00024657,7]
[385371383,1757796644835,-540.38,0.00024657,3]
[385371384,1757796644847,-688.144878,0.00024657,7]
[385371385,1757796644856,-151.0,0.00024657,7]
[385371386,1757796644865,-688.144878,0.00024657,7]
[385371387,1757796644875,-151.0,0.00024657,7]
[385371388,1757796644883,-151.0,0.00024657,7]
[385371389,1757796644893,-688.144878,0.00024657,7]
[385371390,1757796644903,-641.58,0.00024657,3]
[385371391,1757796644913,-151.0,0.00024657,7]
[385371392,1757796644923,-688.144878,0.00024657,7]
[385371393,1757796644932,-151.0,0.00024657,7]
[385371394,1757796644943,-688.144878,0.00024657,7]
[385371395,1757796644953,-688.144878,0.00024657,7]
[385371396,1757796644963,-151.0,0.00024657,7]
[385371397,1757796644973,-151.0,0.00024657,7]
[385371398,1757796644983,-688.144878,0.00024657,7]
[385371399,1757796644994,-480.0,0.00024657,3]
[385371400,1757796645004,-688.144878,0.00024657,7]
[385371401,1757796645015,-151.0,0.00024657,7]
[385371402,1757796645027,-688.144878,0.00024657,7]
[385371403,1757796645036,-688.144878,0.00024657,7]
[385371404,1757796645046,-151.0,0.00024657,7]
[385371405,1757796645055,-151.0,0.00024657,7]
[385371406,1757796645064,-688.144885,0.00024657,7]
[385371407,1757796645073,-151.0,0.00024657,7]
[385371408,1757796645082,-151.0,0.00024657,7]
[385371409,1757796645092,-151.0,0.00024657,7]
[385371410,1757796645101,-480.0,0.00024657,3]
[385371411,1757796645110,-151.0,0.00024657,7]
[385371412,1757796645119,-151.0,0.00024657,7]
[385371413,1757796645129,-279.820868,0.00024657,7]
[385371414,1757796645142,-151.0,0.00024657,7]
[385371415,1757796645152,-151.0,0.00024657,7]
[385371416,1757796645162,-506.02,0.00024657,3]
[385371417,1757796645171,-151.0,0.00024657,7]
[385371418,1757796645180,-151.0,0.00024657,7]
[385371419,1757796645190,-151.0,0.00024657,7]
[385371420,1757796645199,-257.816932,0.00024657,7]
[385371421,1757796645208,-480.0,0.00024657,3]
[385371422,1757796645218,-583.43,0.00024657,3]
[385371423,1757796645227,-485.22,0.00024657,3]
[385371424,1757796645237,-571.86,0.00024657,3]
[385371425,1757796645247,-480.0,0.00024657,2]
[385371426,1757796645257,-480.0,0.00024657,3]
[385371427,1757796645267,-3351.08,0.00024657,3]
[385371428,1757796645276,-151.0,0.00024657,7]
[385371429,1757796645285,-151.0,0.00024657,7]
[385371430,1757796645295,-1136.817116,0.00024657,7]
[385371431,1757796645305,-151.0,0.00024657,7]
[385371432,1757796645315,-679.47,0.00024657,3]
[385371433,1757796645324,-1136.817116,0.00024657,7]
[385371434,1757796645334,-151.0,0.00024657,7]
[385371435,1757796645343,-1136.817116,0.00024657,7]
[385371436,1757796645353,-151.0,0.00024657,7]
[385371437,1757796645363,-1136.817116,0.00024657,7]
[385371438,1757796645372,-1000.0,0.00024657,2]
[385371439,1757796645381,-151.0,0.00024657,7]
[385371440,1757796645391,-1136.817116,0.00024657,7]
[385371441,1757796645400,-1000.0,0.00024657,2]
[385371442,1757796645410,-151.0,0.00024657,7]
[385371443,1757796645419,-1136.817116,0.00024657,7]
[385371444,1757796645429,-1000.0,0.00024657,2]
[385371445,1757796645438,-151.0,0.00024657,7]
[385371446,1757796645448,-1136.817116,0.00024657,7]
[385371447,1757796645457,-1000.0,0.00024657,2]
[385371448,1757796645466,-151.0,0.00024657,7]
[385371449,1757796645475,-1136.817116,0.00024657,7]
[385371450,1757796645485,-151.0,0.00024657,7]
[385371451,1757796645495,-1000.0,0.00024657,2]
[385371452,1757796645504,-1136.817116,0.00024657,7]
[385371453,1757796645513,-151.0,0.00024657,7]
[385371454,1757796645522,-1000.0,0.00024657,2]
[385371455,1757796645532,-1136.817116,0.00024657,7]
[385371456,1757796645541,-151.0,0.00024657,7]
[385371457,1757796645550,-1000.0,0.00024657,2]
[385371458,1757796645560,-1136.817116,0.00024657,7]
[385371459,1757796645569,-151.0,0.00024657,7]
[385371460,1757796645579,-1000.0,0.00024657,2]
[385371461,1757796645589,-1136.817116,0.00024657,7]
[385371462,1757796645598,-151.0,0.00024657,7]
[385371463,1757796645608,-1136.817116,0.00024657,7]
[385371464,1757796645617,-1000.0,0.00024657,2]
[385371465,1757796645627,-151.0,0.00024657,7]
[385371466,1757796645637,-1136.817116,0.00024657,7]
[385371467,1757796645647,-1000.0,0.00024657,2]
[385371468,1757796645657,-151.0,0.00024657,7]
[385371469,1757796645668,-1136.817116,0.00024657,7]
[385371470,1757796645678,-151.0,0.00024657,7]
[385371471,1757796645688,-1000.0,0.00024657,2]
[385371472,1757796645698,-1136.817116,0.00024657,7]
[385371473,1757796645708,-151.0,0.00024657,7]
[385371474,1757796645718,-1000.0,0.00024657,2]
[385371475,1757796645729,-1000.0,0.00024657,2]
[385371476,1757796645738,-1136.817116,0.00024657,7]
[385371477,1757796645748,-202.262395,0.00024657,7]
[385371478,1757796645757,-1136.817116,0.00024657,7]
[385371479,1757796645768,-1000.0,0.00024657,2]
[385371480,1757796645778,-1136.817116,0.00024657,7]
[385371481,1757796645788,-1000.0,0.00024657,2]
[385371482,1757796645799,-1136.817108,0.00024657,7]
[385371483,1757796645809,-1000.0,0.00024657,2]
[385371484,1757796645819,-608.24,0.00024657,3]
[385371485,1757796645828,-1000.0,0.00024657,2]
[385371486,1757796645838,-1000.0,0.00024657,2]
[385371487,1757796645847,-480.0,0.00024657,3]
[385371488,1757796645857,-1000.0,0.00024657,2]
[385371489,1757796645866,-1000.0,0.00024657,2]
[385371490,1757796645876,-151.0,0.00024658,7]
[385371491,1757796645886,-151.0,0.00024658,7]
[385371492,1757796645896,-151.0,0.00024658,7]
[385371493,1757796645906,-194.793766,0.00024658,7]
[385371494,1757796645916,-157.0,0.00024658,3]
[385371495,1757796645926,-500.0,0.00024658,2]
[385371496,1757796645935,-3000.0,0.0002466,2]
[385371497,1757796645945,-5937.16886,0.0002467,2]
[385371498,1757796645954,-500.0,0.00024673,2]
[385371499,1757796645963,-485.04805454,0.00024673,2]
[385371500,1757796645974,-500.0,0.00024673,2]
[385371501,1757796645983,-500.0,0.00024673,2]
[385371502,1757796646125,-500.0,0.00024673,2]
[385371503,1757796646137,-502.61682343,0.00024673,2]
[385371504,1757796646146,-500.0,0.00024673,2]
[385371505,1757796646155,-500.0,0.00024673,2]
[385371506,1757796646164,-500.0,0.00024673,2]
[385371507,1757796646173,-500.0,0.00024673,2]
[385371508,1757796646183,-500.0,0.00024673,2]
[385371509,1757796646195,-501.03122527,0.00024673,2]
[385371510,1757796646204,-503.28828913,0.00024673,2]
[385371511,1757796646213,-500.0,0.00024673,2]
[385371512,1757796646222,-500.0,0.00024673,2]
[385371513,1757796646232,-500.0,0.00024673,2]
[385371514,1757796646241,-500.0,0.00024673,2]
[385371515,1757796646251,-500.0,0.00024673,2]
[385371516,1757796646261,-500.22444433,0.00024673,2]
[385371517,1757796646270,-500.0,0.00024673,2]
[385371518,1757796646279,-500.87044232,0.00024673,2]
[385371519,1757796646287,-500.0,0.00024673,2]
[385371520,1757796646298,-500.0,0.00024673,2]
[385371521,1757796646307,-500.0,0.00024673,2]
[385371522,1757796646316,-500.0,0.00024673,2]
[385371523,1757796646325,-500.0,0.00024673,2]
[385371524,1757796646335,-500.0,0.00024673,2]
[385371525,1757796646344,-504.06962117,0.00024673,2]
[385371526,1757796646353,-500.0,0.00024673,2]
[385371527,1757796646362,-500.0,0.00024673,2]
[385371528,1757796646372,-500.0,0.00024673,2]
[385371529,1757796646381,-500.0,0.00024673,2]
[385371530,1757796646390,-500.0,0.00024673,2]
[385371531,1757796646399,-264.02939413,0.00024673,2]
[385371532,1757796646409,-168.52481185,0.00024673,2]
[385371533,1757796646418,-500.0,0.00024673,2]
[385371534,1757796646427,-500.0,0.00024673,2]
[385371535,1757796646436,-500.0,0.00024673,2]
[385371536,1757796646445,-239.8664527,0.00024673,2]
[385371537,1757796646454,-364.04709073,0.00024673,2]
[385371538,1757796646463,-501.27550109,0.00024673,2]
[385371539,1757796646473,-500.0,0.00024673,2]
[385371540,1757796646485,-500.0,0.00024673,2]
[385371541,1757796646494,-500.0,0.00024673,2]
[385371542,1757796646503,-500.0,0.00024673,2]
[385371543,1757796646512,-500.0,0.00024673,2]
[385371544,1757796646521,-501.85826548,0.00024673,2]
[385371545,1757796646532,-500.0,0.00024673,2]
[385371546,1757796646541,-500.0,0.00024673,2]
[385371547,1757796646551,-275.4374358,0.00024673,2]
[385371548,1757796646562,-156.49174642,0.00024673,2]
[385371549,1757796646570,-191.46324688,0.00024673,2]
[385371550,1757796646579,-503.08097958,0.00024673,2]
[385371551,1757796646588,-500.0,0.00024673,2]
[385371552,1757796646597,-500.0,0.00024673,2]
[385371553,1757796646607,-500.0,0.00024673,2]
[385371554,1757796646617,-3489.0,0.0002468,2]
[385371555,1757796646626,-1278.0,0.00024697,2]
[385371556,1757796646635,-3000.0,0.000247,2]
[385371557,1757796646644,-151.0,0.000247,6]
[385371558,1757796646653,-151.0,0.000247,6]
[385371559,1757796646663,-151.0,0.000247,7]
[385371560,1757796646672,-151.0,0.000247,6]
[385371561,1757796646681,-151.0,0.000247,8]
[385371562,1757796646691,-610.64690538,0.000247,7]
[385371563,1757796646700,-168.0,0.00024701,2]
[385371564,1757796646710,-393.52420659,0.00024714,2]
[385371565,1757796646719,-309.0,0.00024716,2]
[385371566,1757796646728,-3151.0,0.00024734,2]
[385371567,1757796646737,-1415.15,0.00024739,2]
[385371568,1757796646747,-1415.15,0.00024739,2]
[385371569,1757796646756,-1415.15,0.00024739,2]
[385371570,1757796646764,-1415.15,0.00024739,2]
[385371571,1757796646774,-1415.15,0.00024739,2]
[385371572,1757796646783,-1415.15,0.00024739,2]
[385371574,1757796646793,-1415.15,0.00024739,2]
[385371576,1757796646802,-1415.15,0.00024739,2]
[385371578,1757796646811,-1415.15,0.00024739,2]
[385371580,1757796646821,-1415.15,0.00024739,2]
[385371582,1757796646831,-1415.15,0.00024739,2]
[385371584,1757796646840,-1415.15,0.00024739,2]
[385371585,1757796646849,-1415.15,0.00024739,2]
[385371586,1757796646858,-1415.15,0.00024739,2]
[385371587,1757796646867,-1415.15,0.00024739,2]
[385371588,1757796646876,-1415.15,0.00024739,2]
[385371589,1757796646885,-1415.15,0.00024739,2]
[385371590,1757796646894,-1415.15,0.00024739,2]
[385371591,1757796646903,-1415.15,0.00024739,2]
[385371592,1757796646912,-1415.15,0.00024739,2]
[385371593,1757796646921,-1415.15,0.00024739,2]
[385371594,1757796646931,-1415.15,0.00024739,2]
[385371595,1757796646940,-1415.15,0.00024739,2]
[385371596,1757796646949,-1415.23775488,0.00024739,2]
[385371597,1757796646958,-1000.0,0.00024742,5]
[385371598,1757796646967,-531.13137412,0.00024795,2]
[385371599,1757796646977,-233.1568031,0.00024795,2]
[385371600,1757796646986,-160.0,0.00024795,2]
[385371601,1757796646996,-847.12775373,0.00024795,2]
[385371602,1757796647005,-217.73838971,0.00024795,2]
[385371603,1757796647014,-151.0,0.000248,6]
[385371604,1757796647023,-151.0,0.000248,10]
[385371605,1757796647032,-151.0,0.000248,6]
[385371606,1757796647041,-151.0,0.000248,8]
[385371607,1757796647051,-151.0,0.000248,7]
[385371608,1757796647061,-151.0,0.000248,8]
[385371609,1757796647070,-151.0,0.000248,5]
[385371610,1757796647079,-151.0,0.000248,10]
[385371611,1757796647089,-151.0,0.000248,5]
[385371612,1757796647098,-151.0,0.000248,5]
[385371613,1757796647107,-151.0,0.000248,7]
[385371614,1757796647116,-151.0,0.000248,5]
[385371615,1757796647126,-174.59529717,0.000248,2]
[385371616,1757796647134,-500.0,0.00024829,2]
[385371617,1757796647143,-3797.41122549,0.00024831,2]
[385371618,1757796647152,-500.0,0.00024873,2]
[385371619,1757796647161,-501.58338626,0.00024873,2]
[385371620,1757796647170,-500.0,0.00024873,2]
[385371621,1757796647179,-500.0,0.00024873,2]
[385371622,1757796647188,-504.0126241,0.00024873,2]
[385371623,1757796647197,-500.0,0.00024873,2]
[385371624,1757796647206,-500.0,0.00024873,2]
[385371625,1757796647216,-500.0,0.00024873,2]
[385371626,1757796647225,-500.0,0.00024873,2]
[385371627,1757796647234,-500.0,0.00024873,2]
[385371628,1757796647243,-555.58659027,0.00024873,2]
[385371629,1757796647252,-500.0,0.00024873,2]
[385371630,1757796647261,-500.0,0.00024873,2]
[385371631,1757796647270,-500.0,0.00024873,2]
[385371632,1757796647279,-500.0,0.00024873,2]
[385371633,1757796647288,-500.0,0.00024873,2]
[385371634,1757796647297,-500.0,0.00024873,2]
[385371635,1757796647306,-598.03792352,0.00024873,2]
[385371636,1757796647315,-500.0,0.00024873,2]
[385371637,1757796647324,-501.26629294,0.00024873,2]
[385371638,1757796647333,-500.10623044,0.00024873,2]
[385371639,1757796647342,-500.0,0.00024873,2]
[385371640,1757796647352,-160.08940742,0.00024873,2]
[385371641,1757796647361,-160.12895309,0.00024873,2]
[385371642,1757796647370,-158.13411962,0.00024873,2]
[385371643,1757796647379,-160.1281934,0.00024873,2]
[385371644,1757796647388,-500.0,0.00024873,2]
[385371645,1757796647397,-500.0,0.00024873,2]
[385371646,1757796647406,-500.0,0.00024873,2]
[385371647,1757796647415,-500.0,0.00024873,2]
[385371648,1757796647424,-500.0,0.00024873,2]
[385371649,1757796647434,-500.0,0.00024873,2]
[385371650,1757796647443,-500.0,0.00024873,2]
[385371651,1757796647452,-500.0,0.00024873,2]
[385371652,1757796647461,-500.0,0.00024873,2]
[385371653,1757796647470,-500.0,0.00024873,2]
[385371654,1757796647479,-500.0,0.00024873,2]
[385371655,1757796647488,-500.0,0.00024873,2]
[385371656,1757796647497,-500.0,0.00024873,2]
[385371657,1757796647506,-521.44542672,0.00024873,2]
[385371658,1757796647515,-500.0,0.00024873,2]
[385371659,1757796647524,-500.0,0.00024873,2]
[385371660,1757796647534,-500.0,0.00024873,2]
[385371661,1757796647544,-500.0,0.00024873,2]
[385371662,1757796647553,-500.0,0.00024873,2]
[385371663,1757796647562,-586.84075356,0.00024873,2]
[385371664,1757796647571,-505.19897323,0.00024873,2]
[385371665,1757796647580,-500.0,0.00024873,2]
[385371666,1757796647589,-500.0,0.00024873,2]
[385371667,1757796647597,-501.09878105,0.00024873,2]
[385371668,1757796647607,-500.0,0.00024873,2]
[385371669,1757796647615,-541.95171076,0.00024873,2]
[385371670,1757796647624,-500.0,0.00024873,2]
[385371671,1757796647634,-500.0,0.00024873,2]
[385371672,1757796647643,-500.50107069,0.00024873,2]
[385371673,1757796647652,-263.69367728,0.00024873,2]
[385371674,1757796647661,-500.0,0.00024873,2]
[385371675,1757796647670,-500.0,0.00024873,2]
[385371676,1757796647679,-3000.0,0.00024888,3]
[385371677,1757796647689,-160.0,0.00024889,2]
[385371678,1757796647699,-152.176234,0.0002489,5]
[385371679,1757796647708,-667.46250224,0.00024896,2]
[385371680,1757796647718,-277.0,0.000249,2]
[385371681,1757796647727,-279.0,0.000249,2]
[385371682,1757796647737,-151.0,0.000249,5]
[385371683,1757796647747,-151.0,0.000249,5]
[385371684,1757796647756,-150000.0,0.000249,2]
[385371685,1757796647765,-151.0,0.000249,9]
[385371686,1757796647775,-106740.10679801,0.000249,2]
[385371687,1757796647784,-152.176234,0.000249,7]
[385371688,1757796647793,-152.176234,0.000249,2]
[385371689,1757796647803,-327616.919293,0.000249,2]
[385371690,1757796647812,-304.66342411,0.00024931,3]
[385371691,1757796647822,-157.0,0.00024931,3]
[385371692,1757796647831,-157.0,0.00024931,3]
[385371693,1757796647841,-500.0,0.00024931,3]
[385371694,1757796647852,-157.0,0.00024931,3]
[385371695,1757796647861,-500.0,0.00024931,3]
[385371696,1757796647871,-500.0,0.00024931,3]
[385371697,1757796647880,-276.49957397,0.00024931,3]
[385371698,1757796647890,-302.83491335,0.00024931,3]
[385371699,1757796647899,-306.61988296,0.00024931,3]
[385371700,1757796647908,-157.0,0.00024931,3]
[385371701,1757796647918,-157.0,0.00024931,3]
[385371702,1757796647928,-542.61714441,0.00024931,3]
[385371703,1757796647937,-175.99160857,0.00024931,3]
[385371704,1757796647947,-157.0,0.00024931,3]
[385371705,1757796647957,-157.0,0.00024931,3]
[385371706,1757796647967,-158.99457478,0.00024931,3]
[385371707,1757796647976,-157.0,0.00024931,3]
[385371708,1757796647986,-157.0,0.00024931,3]
[385371709,1757796647997,-157.0,0.00024931,3]
[385371710,1757796648007,-301.6977983,0.00024931,3]
[385371711,1757796648018,-746.0,0.00024931,3]
[385371712,1757796648029,-500.0,0.00024931,3]
[385371713,1757796648039,-157.0,0.00024931,3]
[385371714,1757796648049,-480.0,0.00024931,3]
[385371715,1757796648059,-480.0,0.00024931,3]
[385371716,1757796648068,-480.0,0.00024931,3]
[385371717,1757796648078,-480.0,0.00024931,3]
[385371718,1757796648088,-488.5416219,0.00024931,3]
[385371719,1757796648098,-480.0,0.00024931,3]
[385371720,1757796648108,-480.0,0.00024931,3]
[385371721,1757796648119,-496.53173441,0.00024931,3]
[385371722,1757796648129,-480.0,0.00024931,3]
[385371723,1757796648139,-480.0,0.00024931,3]
[385371724,1757796648149,-480.0,0.00024931,3]
[385371725,1757796648160,-557.82,0.00024931,3]
[385371726,1757796648169,-480.0,0.00024931,3]
[385371727,1757796648179,-480.0,0.00024931,3]
[385371728,1757796648188,-480.0,0.00024931,3]
[385371729,1757796648199,-480.0,0.00024931,3]
[385371730,1757796648208,-575.64,0.00024931,3]
[385371731,1757796648217,-480.0,0.00024931,3]
[385371732,1757796648227,-480.0,0.00024931,3]
[385371733,1757796648237,-690.06,0.00024931,3]
[385371734,1757796648248,-645.08,0.00024931,3]
[385371735,1757796648257,-480.0,0.00024931,3]
[385371736,1757796648267,-480.0,0.00024931,3]
[385371737,1757796648276,-480.0,0.00024931,3]
[385371738,1757796648286,-480.0,0.00024931,3]
[385371739,1757796648295,-480.0,0.00024931,3]
[385371740,1757796648305,-480.0,0.00024931,3]
[385371741,1757796648315,-480.0,0.00024931,3]
[385371742,1757796648325,-480.0,0.00024931,3]
[385371743,1757796648334,-480.0,0.00024931,3]
[385371744,1757796648343,-480.0,0.00024931,3]
[385371745,1757796648352,-480.0,0.00024931,3]
[385371746,1757796648361,-572.52650891,0.00024931,3]
[385371747,1757796648370,-493.91534547,0.00024931,3]
[385371748,1757796648379,-480.0,0.00024931,3]
[385371749,1757796648389,-480.0,0.00024931,3]
[385371750,1757796648398,-480.0,0.00024931,3]
[385371751,1757796648407,-480.0,0.00024931,3]
[385371752,1757796648416,-1056.48,0.00024931,3]
[385371753,1757796648426,-480.0,0.00024931,3]
[385371754,1757796648435,-486.52,0.00024931,3]
[385371755,1757796648444,-730.41,0.00024931,3]
[385371756,1757796648453,-480.0,0.00024931,3]
[385371757,1757796648462,-522.57688936,0.00024931,3]
[385371758,1757796648472,-480.0,0.00024931,3]
[385371759,1757796648483,-291.86960681,0.00024931,3]
[385371760,1757796648493,-480.0,0.00024931,3]
[385371761,1757796648502,-480.0,0.00024931,3]
[385371762,1757796648512,-486.97,0.00024931,3]
[385371763,1757796648523,-480.0,0.00024931,3]
[385371764,1757796648533,-480.0,0.00024931,3]
[385371765,1757796648542,-480.0,0.00024931,3]
[385371766,1757796648552,-876.32,0.00024931,3]
[385371767,1757796648562,-480.0,0.00024931,3]
[385371768,1757796648571,-920.85,0.00024931,3]
[385371769,1757796648580,-480.0,0.00024931,3]
[385371770,1757796648589,-480.0,0.00024931,3]
[385371771,1757796648598,-480.0,0.00024931,3]
[385371772,1757796648607,-480.0,0.00024931,3]
[385371773,1757796648617,-581.72169038,0.00024931,3]
[385371774,1757796648626,-480.0,0.00024931,3]
[385371775,1757796648636,-480.0,0.00024931,3]
[385371776,1757796648645,-480.0,0.00024931,3]
[385371777,1757796648783,-480.0,0.00024931,3]
[385371778,1757796648794,-480.0,0.00024931,3]
[385371779,1757796648805,-480.0,0.00024931,3]
[385371780,1757796648815,-481.29,0.00024931,3]
[385371781,1757796648825,-720.26,0.00024931,3]
[385371782,1757796648835,-480.0,0.00024931,3]
[385371783,1757796648844,-531.6513929,0.00024931,3]
[385371784,1757796648854,-880.32,0.00024931,3]
[385371785,1757796648863,-2070.95,0.00024931,3]
[385371786,1757796648873,-1226.32,0.00024931,3]
[385371787,1757796648882,-480.0,0.00024931,3]
[385371788,1757796648892,-480.0,0.00024931,3]
[385371789,1757796648901,-480.0,0.00024931,3]
[385371790,1757796648911,-480.0,0.00024931,3]
[385371791,1757796648920,-339.07187462,0.00024931,3]
[385371792,1757796648929,-1074.58,0.00024931,3]
[385371793,1757796648939,-480.0,0.00024931,3]
[385371794,1757796648948,-651.68,0.00024931,3]
[385371795,1757796648958,-1364.01,0.00024931,3]
[385371796,1757796648968,-480.0,0.00024931,3]
[385371797,1757796648977,-480.0,0.00024931,3]
[385371798,1757796648987,-291.02641162,0.00024931,3]
[385371799,1757796648996,-330.32297244,0.00024931,3]
[385371800,1757796649005,-1642.82,0.00024931,3]
[385371801,1757796649015,-480.0,0.00024931,3]
[385371802,1757796649023,-480.0,0.00024931,3]
[385371803,1757796649033,-200.0,0.00024931,3]
[385371804,1757796649043,-1026.02,0.00024931,3]
[385371805,1757796649052,-480.0,0.00024931,3]
[385371806,1757796649061,-480.0,0.00024931,3]
[385371807,1757796649071,-480.0,0.00024931,3]
[385371808,1757796649080,-480.0,0.00024931,3]
[385371809,1757796649089,-341.65844923,0.00024931,3]
[385371810,1757796649099,-480.0,0.00024931,3]
[385371811,1757796649108,-480.0,0.00024931,3]
[385371812,1757796649118,-480.0,0.00024931,3]
[385371813,1757796649127,-979.66,0.00024931,3]
[385371814,1757796649137,-1919.39,0.00024931,3]
[385371815,1757796649146,-480.0,0.00024931,3]
[385371816,1757796649156,-480.0,0.00024931,3]
[385371817,1757796649165,-659.48,0.00024931,3]
[385371818,1757796649174,-480.0,0.00024931,3]
[385371819,1757796649183,-625.66,0.00024931,3]
[385371820,1757796649192,-480.000001,0.00024931,3]
[385371821,1757796649201,-480.0,0.00024931,3]
[385371822,1757796649211,-314.15454043,0.00024931,3]
[385371823,1757796649220,-480.0,0.00024931,3]
[385371824,1757796649230,-743.28,0.00024931,3]
[385371825,1757796649239,-480.0,0.00024931,3]
[385371826,1757796649249,-480.0,0.00024931,3]
[385371827,1757796649258,-635.22,0.00024931,3]
[385371828,1757796649267,-480.0,0.00024931,3]
[385371829,1757796649276,-1128.55,0.00024931,3]
[385371830,1757796649285,-480.0,0.00024931,3]
[385371831,1757796649294,-480.0,0.00024931,3]
[385371832,1757796649303,-435.26574582,0.00024931,3]
[385371833,1757796649313,-574.84,0.00024931,3]
[385371834,1757796649322,-551.0,0.00024931,3]
[385371835,1757796649331,-480.0,0.00024931,3]
[385371836,1757796649340,-480.0,0.00024931,3]
[385371837,1757796649349,-480.0,0.00024931,3]
[385371838,1757796649358,-480.0,0.00024931,3]
[385371839,1757796649367,-480.0,0.00024931,3]
[385371840,1757796649377,-480.0,0.00024931,3]
[385371841,1757796649386,-480.0,0.00024931,3]
[385371842,1757796649395,-1190.53,0.00024931,3]
[385371843,1757796649404,-480.0,0.00024931,3]
[385371844,1757796649414,-480.0,0.00024931,3]
[385371845,1757796649423,-772.88,0.00024931,3]